fUST/lending_fUST_20250210
["ID","MTS","AMOUNT","RATE_DAILY","PERIOD"]
[352500368,1739139046424,-500.0,0.00012054,2]
[352500371,1739139046434,-3346.8,0.00012054,2]
[352500374,1739139046443,-920.44,0.00012054,2]
[352500376,1739139046453,-946.85,0.00012054,2]
[352500378,1739139046462,-555.64571089,0.00012054,2]
[352500380,1739139046474,-500.0,0.00012054,2]
[352500382,1739139046484,-500.0,0.00012054,2]
[352500384,1739139046494,-500.0,0.00012054,2]
[352500386,1739139046503,-389.42993362,0.00012054,2]
[352500388,1739139046514,-1102.24,0.00012054,2]
[352500390,1739139046524,-500.0,0.00012054,2]
[352500392,1739139046533,-500.0,0.00012054,2]
[352500394,1739139046543,-1000.0,0.00012069,2]
[352500396,1739139046553,-1000.0,0.00012071,2]
[352500398,1739139046563,-1000.0,0.00012086,2]
[352500400,1739139046573,-151.0,0.000121,2]
[352500402,1739139046590,-151.0,0.000121,2]
[352500404,1739139046628,-489.6353252,0.0001219,2]
[352500406,1739139046720,-192.74472764,0.0001219,2]
[352500408,1739139046792,-500.0,0.00012191,2]
[352500410,1739139046899,-346.26422426,0.00012191,2]
[352500411,1739139046972,-500.0,0.00012191,2]
[352500413,1739139047086,-1090.35,0.00012191,2]
[352500416,1739139047196,-500.0,0.00012191,2]
[352500418,1739139047323,-268.49800783,0.00012191,2]
[352500420,1739139047448,-500.0,0.00012191,2]
[352500422,1739139047575,-1776.74,0.00012191,2]
[352500424,1739139047661,-505.7,0.00012191,2]
[352500426,1739139047732,-500.0,0.00012191,2]
[352500428,1739139047746,-500.0,0.00012191,2]
[352500430,1739139047758,-500.0,0.00012191,2]
[352500432,1739139047768,-500.0,0.00012191,2]
[352500434,1739139047778,-500.0,0.00012191,2]
[352500436,1739139047788,-2535.49,0.00012191,2]
[352500438,1739139047798,-238.82406905,0.00012191,2]
[352500440,1739139047808,-520.28,0.00012191,2]
[352500442,1739139047818,-500.0,0.00012191,2]
[352500444,1739139047829,-1288.92,0.00012191,2]
[352500446,1739139047838,-500.0,0.00012191,2]
[352500448,1739139047848,-1011.88,0.00012191,2]
[352500450,1739139047857,-592.48,0.00012191,2]
[352500452,1739139047867,-11049.1,0.00012191,2]
[352500454,1739139047877,-3548.82,0.00012191,2]
[352500456,1739139047886,-500.0,0.00012191,2]
[352500458,1739139047896,-515.81,0.00012191,2]
[352500460,1739139047906,-8232.14,0.00012191,2]
[352500462,1739139047916,-3391.52,0.00012191,2]
[352500464,1739139047925,-1749.51,0.00012191,2]
[352500466,1739139047935,-1830.63,0.00012191,2]
[352500468,1739139047945,-500.0,0.00012191,2]
[352500470,1739139047954,-3346.8,0.00012191,2]
[352500472,1739139047964,-920.44,0.00012191,2]
[352500474,1739139047974,-946.85,0.00012191,2]
[352500476,1739139047984,-506.80187619,0.00012191,2]
[352500478,1739139047994,-500.0,0.00012191,2]
[352500480,1739139048003,-500.0,0.00012191,2]
[352500482,1739139048015,-1102.24,0.00012191,2]
[352500484,1739139048025,-500.0,0.00012191,2]
[352500487,1739139048035,-500.0,0.00012191,2]
[352500488,1739139048044,-151.0,0.000123,2]
[352500491,1739139048054,-500.0,0.00012328,2]
[352500493,1739139048064,-500.0,0.00012328,2]
[352500495,1739139048074,-1090.35,0.00012328,2]
[352500497,1739139048083,-500.0,0.00012328,2]
[352500499,1739139048093,-500.0,0.00012328,2]
[352500500,1739139048102,-1776.74,0.00012328,2]
[352500502,1739139048112,-505.7,0.00012328,2]
[352500505,1739139048121,-500.0,0.00012328,2]
[352500506,1739139048131,-500.0,0.00012328,2]
[352500509,1739139048141,-645.34,0.00012328,2]
[352500511,1739139048151,-500.0,0.00012328,2]
[352500513,1739139048162,-194.82,0.00012328,2]
[352500515,1739139048172,-2535.49,0.00012328,2]
[352500517,1739139048181,-520.28,0.00012328,2]
[352500519,1739139048191,-500.0,0.00012328,2]
[352500521,1739139048202,-1288.92,0.00012328,2]
[352500523,1739139048212,-500.0,0.00012328,2]
[352500525,1739139048222,-1011.88,0.00012328,2]
[352500527,1739139048232,-592.48,0.00012328,2]
[352500529,1739139048242,-11049.1,0.00012328,2]
[352500531,1739139048253,-3548.82,0.00012328,2]
[352500533,1739139048265,-500.0,0.00012328,2]
[352500535,1739139048276,-8232.14,0.00012328,2]
[352500537,1739139048287,-3391.52,0.00012328,2]
[352500539,1739139048299,-1749.51,0.00012328,2]
[352500541,1739139048310,-1830.63,0.00012328,2]
[352500543,1739139048322,-500.0,0.00012328,2]
[352500545,1739139048333,-3346.8,0.00012328,2]
[352500547,1739139048344,-920.44,0.00012328,2]
[352500549,1739139048355,-946.85,0.00012328,2]
[352500551,1739139048366,-500.0,0.00012328,2]
[352500553,1739139048377,-500.0,0.00012328,2]
[352500555,1739139048387,-1102.24,0.00012328,2]
[352500557,1739139048398,-500.0,0.00012328,2]
[352500559,1739139048408,-500.0,0.00012328,2]
[352500561,1739139048420,-151.0,0.000124,2]
[352500563,1739139048430,-500.0,0.00012465,2]
[352500565,1739139048441,-500.0,0.00012465,2]
[352500567,1739139048452,-1090.35,0.00012465,2]
[352500569,1739139048464,-500.0,0.00012465,2]
[352500571,1739139048476,-500.0,0.00012465,2]
[352500573,1739139048487,-1776.74,0.00012465,2]
[352500575,1739139048498,-505.7,0.00012465,2]
[352500577,1739139048510,-500.0,0.00012465,2]
[352500579,1739139048520,-500.0,0.00012465,2]
[352500581,1739139048530,-150.08823951,0.00012465,2]
[352500582,1739139048542,-2535.49,0.00012465,2]
[352500584,1739139048554,-520.28,0.00012465,2]
[352500586,1739139048565,-500.0,0.00012465,2]
[352500587,1739139048575,-1288.92,0.00012465,2]
[352500589,1739139048585,-500.0,0.00012465,2]
[352500591,1739139048595,-1011.88,0.00012465,2]
[352500592,1739139048606,-592.48,0.00012465,2]
[352500594,1739139048616,-11049.1,0.00012465,2]
[352500596,1739139048627,-3548.82,0.00012465,2]
[352500598,1739139048637,-500.0,0.00012465,2]
[352500599,1739139048647,-8232.14,0.00012465,2]
[352500601,1739139048658,-3391.52,0.00012465,2]
[352500603,1739139048668,-1749.51,0.00012465,2]
[352500605,1739139048678,-1830.63,0.00012465,2]
[352500606,1739139048688,-500.0,0.00012465,2]
[352500608,1739139048699,-3346.8,0.00012465,2]
[352500610,1739139048710,-920.44,0.00012465,2]
[352500611,1739139048721,-946.85,0.00012465,2]
[352500613,1739139048732,-500.0,0.00012465,2]
[352500615,1739139048743,-618.11526845,0.00012465,2]
[352500617,1739139048754,-1102.24,0.00012465,2]
[352500618,1739139048765,-500.0,0.00012465,2]
[352500620,1739139048775,-182.6,0.00012465,2]
[352500621,1739139048785,-22605.86033991,0.00012475,2]
[352500623,1739139048795,-151.0,0.000126,2]
[352500625,1739139048805,-157.565,0.000126,2]
[352500627,1739139048816,-500.0,0.00012602,2]
[352500628,1739139048826,-500.0,0.00012602,2]
[352500630,1739139048836,-1090.35,0.00012602,2]
[352500632,1739139048847,-500.0,0.00012602,2]
[352500633,1739139048858,-500.0,0.00012602,2]
[352500635,1739139048868,-1776.74,0.00012602,2]
[352500637,1739139048879,-505.7,0.00012602,2]
[352500639,1739139048890,-494.75774595,0.00012602,2]
[352500640,1739139048901,-500.0,0.00012602,2]
[352500642,1739139048912,-2535.49,0.00012602,2]
[352500644,1739139048922,-520.28,0.00012602,2]
[352500645,1739139048932,-500.0,0.00012602,2]
[352500647,1739139048942,-500.0,0.00012602,2]
[352500649,1739139048952,-1288.92,0.00012602,2]
[352500651,1739139048963,-1011.88,0.00012602,2]
[352500652,1739139048973,-592.48,0.00012602,2]
[352500654,1739139048983,-11049.1,0.00012602,2]
[352500656,1739139048994,-3548.82,0.00012602,2]
[352500657,1739139049004,-500.0,0.00012602,2]
[352500659,1739139049020,-8232.14,0.00012602,2]
[352500661,1739139049030,-3391.52,0.00012602,2]
[352500663,1739139049041,-1749.51,0.00012602,2]
[352500665,1739139049052,-1830.63,0.00012602,2]
[352500666,1739139049063,-500.0,0.00012602,2]
[352500668,1739139049074,-3346.8,0.00012602,2]
[352500670,1739139049084,-920.44,0.00012602,2]
[352500672,1739139049096,-946.85,0.00012602,2]
[352500674,1739139049107,-500.0,0.00012602,2]
[352500676,1739139049118,-1102.24,0.00012602,2]
[352500678,1739139049127,-500.0,0.00012602,2]
[352500679,1739139049137,-151.0,0.000127,2]
[352500681,1739139049147,-500.0,0.00012739,2]
[352500683,1739139049158,-500.0,0.00012739,2]
[352500685,1739139049169,-1090.35,0.00012739,2]
[352500687,1739139049180,-647.80687638,0.00012739,2]
[352500688,1739139049190,-500.0,0.00012739,2]
[352500690,1739139049201,-1776.74,0.00012739,2]
[352500692,1739139049211,-505.7,0.00012739,2]
[352500694,1739139049222,-500.0,0.00012739,2]
[352500695,1739139049233,-2535.49,0.00012739,2]
[352500697,1739139049244,-520.28,0.00012739,2]
[352500699,1739139049254,-500.0,0.00012739,2]
[352500701,1739139049266,-500.0,0.00012739,2]
[352500703,1739139049275,-1288.92,0.00012739,2]
[352500705,1739139049284,-1011.88,0.00012739,2]
[352500707,1739139049296,-592.48,0.00012739,2]
[352500708,1739139049310,-11049.1,0.00012739,2]
[352500710,1739139049320,-3548.82,0.00012739,2]
[352500712,1739139049330,-500.0,0.00012739,2]
[352500714,1739139049340,-8232.14,0.00012739,2]
[352500716,1739139049349,-3391.52,0.00012739,2]
[352500717,1739139049359,-1749.51,0.00012739,2]
[352500719,1739139049369,-1830.63,0.00012739,2]
[352500721,1739139049378,-500.0,0.00012739,2]
[352500722,1739139049388,-3346.8,0.00012739,2]
[352500724,1739139049398,-920.44,0.00012739,2]
[352500726,1739139049409,-946.85,0.00012739,2]
[352500728,1739139049419,-500.0,0.00012739,2]
[352500730,1739139049430,-1102.24,0.00012739,2]
[352500731,1739139049440,-500.0,0.00012739,2]
[352500733,1739139049450,-2000.0,0.000128,2]
[352500735,1739139049460,-2000.0,0.000128,2]
[352500737,1739139049473,-151.0,0.000128,2]
[352500739,1739139049483,-800.0,0.00012808,2]
[352500741,1739139049494,-500.0,0.00012876,2]
[352500743,1739139049506,-500.0,0.00012876,2]
[352500744,1739139049519,-1090.35,0.00012876,2]
[352500746,1739139049530,-500.0,0.00012876,2]
[352500748,1739139049541,-1776.74,0.00012876,2]
[352500750,1739139049552,-505.7,0.00012876,2]
[352500752,1739139049561,-500.0,0.00012876,2]
[352500754,1739139049571,-2535.49,0.00012876,2]
[352500755,1739139049581,-520.28,0.00012876,2]
[352500757,1739139049591,-285.00974341,0.00012876,2]
[352500759,1739139049601,-500.0,0.00012876,2]
[352500761,1739139049611,-1288.92,0.00012876,2]
[352500762,1739139049620,-1011.88,0.00012876,2]
[352500764,1739139049630,-592.48,0.00012876,2]
[352500766,1739139049639,-11049.1,0.00012876,2]
[352500768,1739139049649,-3548.82,0.00012876,2]
[352500769,1739139049659,-500.0,0.00012876,2]
[352500771,1739139049669,-8232.14,0.00012876,2]
[352500773,1739139049679,-3391.52,0.00012876,2]
[352500775,1739139049689,-1749.51,0.00012876,2]
[352500777,1739139049699,-1830.63,0.00012876,2]
[352500778,1739139049710,-500.0,0.00012876,2]
[352500780,1739139049720,-3346.8,0.00012876,2]
[352500782,1739139049730,-920.44,0.00012876,2]
[352500784,1739139049741,-946.85,0.00012876,2]
[352500785,1739139049751,-301.52943182,0.00012876,2]
[352500787,1739139049762,-1102.24,0.00012876,2]
[352500789,1739139049772,-500.0,0.00012876,2]
[352500791,1739139049782,-151.0,0.000129,2]
[352500792,1739139049793,-7438.69753278,0.00013,2]
[352500794,1739139049803,-500.0,0.00013013,2]
[352500796,1739139049814,-500.0,0.00013013,2]
[352500798,1739139049824,-1090.35,0.00013013,2]
[352500799,1739139049834,-500.0,0.00013013,2]
[352500801,1739139049844,-1776.74,0.00013013,2]
[352500803,1739139049855,-505.7,0.00013013,2]
[352500805,1739139049865,-500.0,0.00013013,2]
[352500807,1739139049877,-2535.49,0.00013013,2]
[352500808,1739139049888,-520.28,0.00013013,2]
[352500810,1739139049899,-500.0,0.00013013,2]
[352500812,1739139049910,-1288.92,0.00013013,2]
[352500814,1739139049920,-1011.88,0.00013013,2]
[352500815,1739139049930,-592.48,0.00013013,2]
[352500817,1739139049939,-11049.1,0.00013013,2]
[352500819,1739139049949,-3548.82,0.00013013,2]
[352500821,1739139049958,-500.0,0.00013013,2]
[352500823,1739139049968,-8232.14,0.00013013,2]
[352500824,1739139049978,-3391.52,0.00013013,2]
[352500826,1739139049987,-1749.51,0.00013013,2]
[352500828,1739139049997,-1830.63,0.00013013,2]
[352500830,1739139050007,-500.0,0.00013013,2]
[352500832,1739139050018,-3346.8,0.00013013,2]
[352500833,1739139050027,-920.44,0.00013013,2]
[352500835,1739139050036,-946.85,0.00013013,2]
[352500837,1739139050046,-1102.24,0.00013013,2]
[352500839,1739139050055,-500.0,0.00013013,2]
[352500841,1739139050065,-1500.0,0.00013071,2]
[352500842,1739139050074,-1500.0,0.00013073,2]
[352500844,1739139050083,-1500.0,0.00013088,2]
[352500846,1739139050092,-151.0,0.000131,2]
[352500848,1739139050103,-500.0,0.0001315,2]
[352500849,1739139050112,-1090.35,0.0001315,2]
[352500851,1739139050121,-500.0,0.0001315,2]
[352500853,1739139050131,-500.0,0.0001315,2]
[352500855,1739139050140,-1776.74,0.0001315,2]
[352500857,1739139050150,-505.7,0.0001315,2]
[352500859,1739139050159,-500.0,0.0001315,2]
[352500861,1739139050169,-2535.49,0.0001315,2]
[352500863,1739139050178,-520.28,0.0001315,2]
[352500865,1739139050188,-500.0,0.0001315,2]
[352500867,1739139050197,-1288.92,0.0001315,2]
[352500869,1739139050207,-1011.88,0.0001315,2]
[352500871,1739139050216,-592.48,0.0001315,2]
[352500873,1739139050231,-11049.1,0.0001315,2]
[352500875,1739139050240,-3548.82,0.0001315,2]
[352500876,1739139050249,-500.0,0.0001315,2]
[352500877,1739139050261,-8232.14,0.0001315,2]
[352500878,1739139050271,-3391.52,0.0001315,2]
[352500879,1739139050280,-1749.51,0.0001315,2]
[352500880,1739139050289,-1830.63,0.0001315,2]
[352500881,1739139050299,-500.0,0.0001315,2]
[352500882,1739139050309,-3346.8,0.0001315,2]
[352500883,1739139050318,-920.44,0.0001315,2]
[352500884,1739139050328,-946.85,0.0001315,2]
[352500885,1739139050337,-1102.24,0.0001315,2]
[352500886,1739139050346,-500.0,0.0001315,2]
[352500887,1739139050355,-151.0,0.00013151,2]
[352500888,1739139050364,-151.0,0.000132,2]
[352500889,1739139050374,-587.0,0.00013232,2]
[352500890,1739139050387,-500.0,0.00013287,2]
[352500891,1739139050399,-1090.35,0.00013287,2]
[352500892,1739139050409,-500.0,0.00013287,2]
[352500893,1739139050419,-500.0,0.00013287,2]
[352500894,1739139050428,-1776.74,0.00013287,2]
[352500895,1739139050438,-505.7,0.00013287,2]
[352500896,1739139050447,-500.0,0.00013287,2]
[352500898,1739139050459,-2535.49,0.00013287,2]
[352500899,1739139050472,-520.28,0.00013287,2]
[352500912,1739139050594,-500.85,0.00013287,2]
[352500914,1739139050604,-1288.92,0.00013287,2]
[352500916,1739139050614,-1011.88,0.00013287,2]
[352500918,1739139050623,-592.48,0.00013287,2]
[352500920,1739139050632,-11049.1,0.00013287,2]
[352500922,1739139050642,-3548.82,0.00013287,2]
[352500924,1739139050652,-500.0,0.00013287,2]
[352500926,1739139050661,-8232.14,0.00013287,2]
[352500928,1739139050670,-3391.52,0.00013287,2]
[352500930,1739139050680,-1749.51,0.00013287,2]
[352500933,1739139050690,-1830.63,0.00013287,2]
[352500935,1739139050702,-500.0,0.00013287,2]
[352500937,1739139050712,-3346.8,0.00013287,2]
[352500939,1739139050722,-920.44,0.00013287,2]
[352500941,1739139050731,-946.85,0.00013287,2]
[352500943,1739139050741,-1102.24,0.00013287,2]
[352500945,1739139050751,-500.0,0.00013287,2]
[352500947,1739139050762,-151.0,0.000133,2]
[352500949,1739139050771,-151.0,0.000134,2]
[352500951,1739139050781,-500.0,0.00013424,2]
[352500953,1739139050791,-1090.35,0.00013424,2]
[352500955,1739139050801,-350.6,0.00013424,2]
[352500956,1739139050811,-500.0,0.00013424,2]
[352500958,1739139050820,-1776.74,0.00013424,2]
[352500960,1739139050829,-505.7,0.00013424,2]
[352500962,1739139050839,-620.60313587,0.00013424,2]
[352500964,1739139050850,-2535.49,0.00013424,2]
[352500967,1739139050860,-520.28,0.00013424,2]
[352500969,1739139050870,-1288.92,0.00013424,2]
[352500970,1739139050880,-1011.88,0.00013424,2]
[352500972,1739139050890,-592.48,0.00013424,2]
[352500974,1739139050899,-11049.1,0.00013424,2]
[352500977,1739139050910,-3548.82,0.00013424,2]
[352500978,1739139050920,-500.0,0.00013424,2]
[352500981,1739139050931,-8232.14,0.00013424,2]
[352500983,1739139050940,-3391.52,0.00013424,2]
[352500984,1739139050950,-1749.51,0.00013424,2]
[352500986,1739139050960,-1830.63,0.00013424,2]
[352500988,1739139050970,-500.0,0.00013424,2]
[352500991,1739139050980,-3346.8,0.00013424,2]
[352500993,1739139050990,-920.44,0.00013424,2]
[352500995,1739139050999,-946.85,0.00013424,2]
[352500997,1739139051011,-1102.24,0.00013424,2]
[352500998,1739139051021,-500.0,0.00013424,2]
[352501001,1739139051031,-6616.65682713,0.0001351,4]
[352501002,1739139051040,-1090.35,0.00013561,2]
[352501005,1739139051049,-418.02,0.00013561,2]
[352501007,1739139051059,-1776.74,0.00013561,2]
[352501008,1739139051068,-505.7,0.00013561,2]
[352501010,1739139051078,-2535.49,0.00013561,2]
[352501013,1739139051088,-520.28,0.00013561,2]
[352501015,1739139051098,-1288.92,0.00013561,2]
[352501017,1739139051108,-1011.88,0.00013561,2]
[352501019,1739139051117,-592.48,0.00013561,2]
[352501021,1739139051127,-11049.1,0.00013561,2]
[352501023,1739139051136,-3548.82,0.00013561,2]
[352501025,1739139051146,-247.88040254,0.00013561,2]
[352501027,1739139051155,-8232.14,0.00013561,2]
[352501029,1739139051165,-3391.52,0.00013561,2]
[352501031,1739139051175,-1749.51,0.00013561,2]
[352501033,1739139051184,-1830.63,0.00013561,2]
[352501035,1739139051194,-500.0,0.00013561,2]
[352501037,1739139051203,-3346.8,0.00013561,2]
[352501039,1739139051213,-920.44,0.00013561,2]
[352501041,1739139051223,-946.85,0.00013561,2]
[352501043,1739139051232,-1102.24,0.00013561,2]
[352501045,1739139051242,-365.98918277,0.00013561,2]
[352501047,1739139051251,-1000.0,0.00013698,2]
[352501049,1739139051262,-1000.0,0.00013698,2]
[352501051,1739139051272,-1000.0,0.00013698,2]
[352501053,1739139051282,-1000.0,0.00013698,2]
[352501055,1739139051291,-1000.0,0.00013698,2]
[352501057,1739139051300,-1000.0,0.00013698,2]
[352501059,1739139051309,-1000.0,0.00013698,2]
[352501061,1739139051318,-1000.0,0.00013698,2]
[352501063,1739139051328,-1000.0,0.00013698,2]
[352501065,1739139051337,-1000.0,0.00013698,2]
[352501067,1739139051347,-1000.0,0.00013698,2]
[352501069,1739139051356,-319.94071062,0.00013698,2]
[352501071,1739139051365,-1090.35,0.00013698,2]
[352501073,1739139051374,-1382.21,0.00013698,2]
[352501075,1739139051383,-1382.21,0.00013698,2]
[352501076,1739139051394,-1382.21,0.00013698,2]
[352501079,1739139051403,-1382.21,0.00013698,2]
[352501080,1739139051412,-1382.21,0.00013698,2]
[352501082,1739139051421,-1382.21,0.00013698,2]
[352501084,1739139051431,-1382.21,0.00013698,2]
[352501086,1739139051440,-1382.21,0.00013698,2]
[352501088,1739139051450,-1382.21,0.00013698,2]
[352501091,1739139051462,-1382.21,0.00013698,2]
[352501093,1739139051476,-1382.21,0.00013698,2]
[352501095,1739139051486,-1382.21,0.00013698,2]
[352501097,1739139051496,-1382.21,0.00013698,2]
[352501099,1739139051507,-1382.21,0.00013698,2]
[352501100,1739139051518,-1382.21,0.00013698,2]
[352501103,1739139051527,-1382.21,0.00013698,2]
[352501105,1739139051536,-1382.21,0.00013698,2]
[352501106,1739139051547,-1382.21,0.00013698,2]
[352501109,1739139051558,-1382.21,0.00013698,2]
[352501111,1739139051568,-1382.21,0.00013698,2]
[352501113,1739139051577,-1382.21,0.00013698,2]
[352501115,1739139051586,-500.0,0.00013698,2]
[352501117,1739139051596,-1776.74,0.00013698,2]
[352501119,1739139051606,-505.7,0.00013698,2]
[352501121,1739139051616,-2535.49,0.00013698,2]
[352501123,1739139051627,-520.28,0.00013698,2]
[352501125,1739139051636,-1288.92,0.00013698,2]
[352501127,1739139051645,-1011.88,0.00013698,2]
[352501129,1739139051655,-592.48,0.00013698,2]
[352501131,1739139051664,-11049.1,0.00013698,2]
[352501133,1739139051674,-3548.82,0.00013698,2]
[352501135,1739139051683,-8232.14,0.00013698,2]
[352501137,1739139051692,-3391.52,0.00013698,2]
[352501139,1739139051701,-1749.51,0.00013698,2]
[352501140,1739139051710,-1830.63,0.00013698,2]
[352501142,1739139051720,-500.0,0.00013698,2]
[352501145,1739139051729,-3346.8,0.00013698,2]
[352501147,1739139051739,-920.44,0.00013698,2]
[352501149,1739139051749,-946.85,0.00013698,2]
[352501151,1739139051758,-1102.24,0.00013698,2]
[352501153,1739139051768,-153.0,0.00013699,2]
[352501154,1739139051777,-153.0,0.00013699,2]
[352501157,1739139051786,-153.0,0.00013699,2]
[352501159,1739139051795,-153.0,0.00013699,2]
[352501161,1739139051805,-153.0,0.00013699,2]
[352501162,1739139051814,-153.0,0.00013699,2]
[352501164,1739139051823,-153.0,0.00013699,2]
[352501167,1739139051833,-153.0,0.00013699,2]
[352501169,1739139051842,-205.699177,0.00013699,2]
[352501170,1739139051852,-2802.6098397,0.00013699,2]
[352501172,1739139051861,-2062.424104,0.00013699,2]
[352501174,1739139051871,-4095.800275,0.00013699,2]
[352501176,1739139051880,-500.0,0.00013699,2]
[352501178,1739139051890,-274.22637504,0.00013699,2]
[352501180,1739139051900,-500.0,0.00013699,2]
[352501182,1739139051909,-500.0,0.00013699,2]
[352501184,1739139051919,-500.0,0.00013699,2]
[352501187,1739139051930,-500.0,0.00013699,2]
[352501188,1739139051939,-500.0,0.00013699,2]
[352501190,1739139051949,-500.0,0.00013699,2]
[352501192,1739139051958,-500.0,0.00013699,2]
[352501194,1739139051967,-500.0,0.00013699,2]
[352501196,1739139051978,-500.0,0.00013699,2]
[352501198,1739139051987,-500.0,0.00013699,2]
[352501200,1739139051996,-150.0,0.00013699,2]
[352501202,1739139052006,-500.0,0.00013699,2]
[352501204,1739139052017,-500.0,0.00013699,2]
[352501206,1739139052027,-500.0,0.00013699,2]
[352501208,1739139052036,-500.0,0.00013699,2]
[352501210,1739139052046,-500.0,0.00013699,2]
[352501212,1739139052055,-500.0,0.00013699,2]
[352501214,1739139052064,-500.0,0.00013699,2]
[352501216,1739139052075,-500.0,0.00013699,2]
[352501218,1739139052084,-500.0,0.00013699,2]
[352501220,1739139052094,-500.0,0.00013699,2]
[352501222,1739139052103,-500.0,0.00013699,2]
[352501224,1739139052112,-500.0,0.00013699,2]
[352501226,1739139052122,-500.0,0.00013699,2]
[352501228,1739139052131,-500.0,0.00013699,2]
[352501230,1739139052140,-500.0,0.00013699,2]
[352501232,1739139052150,-500.0,0.00013699,2]
[352501234,1739139052159,-500.0,0.00013699,2]
[352501236,1739139052168,-500.0,0.00013699,2]
[352501238,1739139052177,-500.0,0.00013699,2]
[352501240,1739139052187,-500.0,0.00013699,2]
[352501242,1739139052196,-500.0,0.00013699,2]
[352501244,1739139052205,-612.71011031,0.00013699,2]
[352501246,1739139052214,-500.0,0.00013699,2]
[352501248,1739139052223,-500.0,0.00013699,2]
[352501250,1739139052232,-500.0,0.00013699,2]
[352501252,1739139052241,-500.0,0.00013699,2]
[352501254,1739139052250,-500.0,0.00013699,2]
[352501256,1739139052261,-500.0,0.00013699,2]
[352501258,1739139052270,-500.0,0.00013699,2]
[352501260,1739139052279,-376.68737591,0.00013699,2]
[352501262,1739139052288,-500.0,0.00013699,2]
[352501264,1739139052296,-500.0,0.00013699,2]
[352501266,1739139052305,-500.0,0.00013699,2]
[352501268,1739139052315,-500.0,0.00013699,2]
[352501270,1739139052324,-500.0,0.00013699,2]
[352501272,1739139052333,-500.0,0.00013699,2]
[352501274,1739139052342,-500.0,0.00013699,2]
[352501276,1739139052351,-500.0,0.00013699,2]
[352501278,1739139052360,-500.0,0.00013699,2]
[352501280,1739139052369,-500.0,0.00013699,2]
[352501282,1739139052379,-500.0,0.00013699,2]
[352501284,1739139052388,-500.0,0.00013699,2]
[352501286,1739139052398,-500.0,0.00013699,2]
[352501288,1739139052407,-500.0,0.00013699,2]
[352501290,1739139052417,-500.0,0.00013699,2]
[352501292,1739139052427,-500.0,0.00013699,2]
[352501294,1739139052437,-500.0,0.00013699,2]
[352501296,1739139052446,-500.0,0.00013699,2]
[352501298,1739139052456,-500.0,0.00013699,2]
[352501300,1739139052468,-500.0,0.00013699,2]
[352501302,1739139052477,-500.0,0.00013699,2]
[352501304,1739139052486,-500.0,0.00013699,2]
[352501306,1739139052498,-500.0,0.00013699,2]
[352501308,1739139052508,-500.0,0.00013699,2]
[352501310,1739139052520,-500.0,0.00013699,2]
[352501312,1739139052529,-500.0,0.00013699,2]
[352501314,1739139052539,-500.0,0.00013699,2]
[352501316,1739139052549,-500.0,0.00013699,2]
[352501318,1739139052558,-500.0,0.00013699,2]
[352501320,1739139052567,-500.0,0.00013699,2]
[352501322,1739139052576,-500.0,0.00013699,2]